fUSD/lending_fUSD_20260504
["ID","MTS","AMOUNT","RATE_DAILY","PERIOD"]
[421553419,1777866643000,-150.0,0.00013699,2]
[421553415,1777866643000,-635.71,0.00013698,2]
[421553420,1777866643000,-150.0,0.00013699,2]
[421553414,1777866643000,-635.71,0.00013698,2]
[421553423,1777866643000,-1565.94,0.00013699,2]
[421553417,1777866643000,-635.71,0.00013698,2]
[421553407,1777866643000,-3924.4276962,0.00013511,2]
[421553404,1777866643000,-152.0,0.00013451,7]
[421553409,1777866643000,-6281.489596,0.00013511,2]
[421553412,1777866643000,-635.71,0.00013698,2]
[421553406,1777866643000,-150.0,0.00013488,2]
[421553408,1777866643000,-65734.7984307,0.00013511,2]
[421553405,1777866643000,-150.0,0.0001347,2]
[421553410,1777866643000,-232.0,0.00013671,2]
[421553403,1777866643000,-500.0,0.00013373,2]
[421553401,1777866643000,-913.18195237,0.00013235,2]
[421553402,1777866643000,-150.0,0.00013242,2]
[421553400,1777866643000,-853644.40766275,0.00013235,2]
[421553398,1777866643000,-5429.47511943,0.00013,2]
[421553399,1777866643000,-976.06378488,0.00013135,2]
[421553411,1777866643000,-635.71,0.00013698,2]
[421553427,1777866643000,-1774.17826858,0.00013699,2]
[421553449,1777866643000,-1774.17826858,0.00013699,2]
[421553433,1777866643000,-1774.17826858,0.00013699,2]
[421553456,1777866643000,-1774.17826858,0.00013699,2]
[421553426,1777866643000,-1774.17826858,0.00013699,2]
[421553455,1777866643000,-1774.17826858,0.00013699,2]
[421553454,1777866643000,-1774.17826858,0.00013699,2]
[421553452,1777866643000,-1774.17826858,0.00013699,2]
[421553451,1777866643000,-1774.17826858,0.00013699,2]
[421553453,1777866643000,-1774.17826858,0.00013699,2]
[421553450,1777866643000,-1774.17826858,0.00013699,2]
[421553448,1777866643000,-1774.17826858,0.00013699,2]
[421553446,1777866643000,-1774.17826858,0.00013699,2]
[421553445,1777866643000,-1774.17826858,0.00013699,2]
[421553447,1777866643000,-1774.17826858,0.00013699,2]
[421553444,1777866643000,-1774.17826858,0.00013699,2]
[421553441,1777866643000,-1774.17826858,0.00013699,2]
[421553457,1777866643000,-1774.17826858,0.00013699,2]
[421553443,1777866643000,-1774.17826858,0.00013699,2]
[421553436,1777866643000,-1774.17826858,0.00013699,2]
[421553442,1777866643000,-1774.17826858,0.00013699,2]
[421553428,1777866643000,-1774.17826858,0.00013699,2]
[421553430,1777866643000,-1774.17826858,0.00013699,2]
[421553431,1777866643000,-1774.17826858,0.00013699,2]
[421553437,1777866643000,-1774.17826858,0.00013699,2]
[421553429,1777866643000,-1774.17826858,0.00013699,2]
[421553435,1777866643000,-1774.17826858,0.00013699,2]
[421553434,1777866643000,-1774.17826858,0.00013699,2]
[421553438,1777866643000,-1774.17826858,0.00013699,2]
[421553440,1777866643000,-1774.17826858,0.00013699,2]
[421553439,1777866643000,-1774.17826858,0.00013699,2]
[421553432,1777866643000,-1774.17826858,0.00013699,2]
[421553473,1777866644000,-1774.17826858,0.00013699,2]
[421553475,1777866644000,-1774.17826858,0.00013699,2]
[421553477,1777866644000,-1774.17826858,0.00013699,2]
[421553476,1777866644000,-1774.17826858,0.00013699,2]
[421553484,1777866644000,-1774.17826858,0.00013699,2]
[421553485,1777866644000,-1774.17826858,0.00013699,2]
[421553486,1777866644000,-1774.17826858,0.00013699,2]
[421553482,1777866644000,-1774.17826858,0.00013699,2]
[421553474,1777866644000,-1774.17826858,0.00013699,2]
[421553478,1777866644000,-1774.17826858,0.00013699,2]
[421553480,1777866644000,-1774.17826858,0.00013699,2]
[421553465,1777866644000,-1774.17826858,0.00013699,2]
[421553462,1777866644000,-1774.17826858,0.00013699,2]
[421553466,1777866644000,-1774.17826858,0.00013699,2]
[421553467,1777866644000,-1774.17826858,0.00013699,2]
[421553470,1777866644000,-1774.17826858,0.00013699,2]
[421553469,1777866644000,-1774.17826858,0.00013699,2]
[421553464,1777866644000,-1774.17826858,0.00013699,2]
[421553471,1777866644000,-1774.17826858,0.00013699,2]
[421553472,1777866644000,-1774.17826858,0.00013699,2]
[421553463,1777866644000,-1774.17826858,0.00013699,2]
[421553459,1777866644000,-1774.17826858,0.00013699,2]
[421553460,1777866644000,-1774.17826858,0.00013699,2]
[421553458,1777866644000,-1774.17826858,0.00013699,2]
[421553461,1777866644000,-1774.17826858,0.00013699,2]
[421553483,1777866644000,-1774.17826858,0.00013699,2]
[421553468,1777866644000,-1774.17826858,0.00013699,2]
[421553487,1777866644000,-1774.17826858,0.00013699,2]
[421553499,1777866644000,-2000.0,0.0001429,2]
[421553490,1777866644000,-154.12,0.0001383,2]
[421553530,1777866644000,-619.0,0.00015,2]
[421553523,1777866644000,-635.71,0.00014999,2]
[421553525,1777866644000,-104579.24969247,0.00015,2]
[421553521,1777866644000,-635.71,0.00014999,2]
[421553529,1777866644000,-1441.83970756,0.00015,2]
[421553519,1777866644000,-635.71,0.00014999,2]
[421553528,1777866644000,-1014.21123152,0.00015,2]
[421553516,1777866644000,-12338.0,0.00014959,2]
[421553505,1777866644000,-4916.24597855,0.00014692,2]
[421553500,1777866644000,-420.0,0.00014402,2]
[421553512,1777866644000,-224.68311128,0.00014802,2]
[421553507,1777866644000,-151.0,0.00014692,2]
[421553503,1777866644000,-578.20924308,0.00014692,2]
[421553508,1777866644000,-236.0,0.00014706,5]
[421553493,1777866644000,-151.88198565,0.00013973,2]
[421553492,1777866644000,-635.71,0.00013883,2]
[421553510,1777866644000,-151.0,0.00014747,2]
[421553491,1777866644000,-173.53,0.0001388,2]
[421553496,1777866644000,-2500.0,0.0001408,2]
[421553494,1777866644000,-2500.0,0.0001408,2]
[421553495,1777866644000,-2500.0,0.0001408,2]
[421553497,1777866644000,-2500.0,0.0001408,2]
[421553498,1777866644000,-2500.0,0.0001408,2]
[421553501,1777866644000,-1680.0,0.00014447,2]
[421553514,1777866644000,-1100.0,0.000149,5]
[421553489,1777866644000,-2000.80984538,0.00013744,2]
[421553488,1777866644000,-1774.17826858,0.00013699,2]
[421553539,1777866646000,-2161.78645384,0.00015,2]
[421553538,1777866646000,-2877.24756941,0.00015,2]
[421553537,1777866646000,-5184.44368243,0.00015,2]
[421553534,1777866646000,-20468.94131923,0.00015,2]
[421553536,1777866646000,-555.2039331,0.00015,2]
[421553535,1777866646000,-767.9779999,0.00015,2]
[421553533,1777866646000,-3016.57165071,0.00015,2]
[421553542,1777866736000,280.0,8.219e-05,2]
[421553544,1777866854000,3007.36861504,0.00030136,120]
[421553545,1777866980000,178.34,6.587e-05,2]
[421553546,1777866980000,178.34,8.234e-05,2]
[421553547,1777866981000,178.34,9.881e-05,2]
[421553549,1777867202000,280.0,8.219e-05,2]
[421553554,1777867634000,280.0,8.219e-05,2]
[421553576,1777867832000,-500.0,0.00011466,2]
[421553585,1777867832000,-250.0,0.00012018,2]
[421553581,1777867832000,-150.0,0.00011799,2]
[421553582,1777867832000,-1513.73329601,0.00011913,2]
[421553579,1777867832000,-163.28,0.00011528,2]
[421553583,1777867832000,-150.0,0.00012017,2]
[421553580,1777867832000,-1000.0,0.0001154,2]
[421553587,1777867832000,-250.0,0.00012018,2]
[421553588,1777867832000,-193.0,0.00012018,2]
[421553586,1777867832000,-5000.0,0.00012018,2]
[421553591,1777867832000,-500.0,0.00012018,2]
[421553584,1777867832000,-5000.0,0.00012018,2]
[421553578,1777867832000,-178.34,0.00011528,2]
[421553574,1777867832000,-300.0,0.0001109,2]
[421553577,1777867832000,-154.11,0.00011482,2]
[421553575,1777867832000,-1200.0,0.0001109,2]
[421553573,1777867832000,-207.53365369,0.00010974,2]
[421553571,1777867832000,-353.61099302,0.00010946,2]
[421553570,1777867832000,-500.0,0.00010946,2]
[421553572,1777867832000,-977.9420717,0.00010949,2]
[421553568,1777867832000,-273.66862917,0.00010946,2]
[421553569,1777867832000,-226.33137083,0.00010946,2]
[421553565,1777867832000,-500.0,0.0001093,2]
[421553566,1777867832000,-193.0,0.00010935,2]
[421553564,1777867832000,-316.03625891,0.00010925,2]
[421553567,1777867832000,-250.0,0.00010944,2]
[421553563,1777867832000,-160.56,0.00010925,2]
[421553592,1777867832000,-392.69413498,0.00012026,2]
[421553593,1777867832000,-348.50366075,0.00012026,2]
[421553611,1777867832000,-500.0,0.00012671,2]
[421553589,1777867832000,-4637.02134323,0.00012018,2]
[421553621,1777867832000,-151.0,0.00012671,2]
[421553623,1777867832000,-151.0,0.00012671,2]
[421553622,1777867832000,-151.0,0.00012671,2]
[421553625,1777867832000,-151.0,0.00012671,2]
[421553620,1777867832000,-151.0,0.00012671,2]
[421553618,1777867832000,-151.0,0.00012671,2]
[421553619,1777867832000,-151.0,0.00012671,2]
[421553616,1777867832000,-151.0,0.00012671,2]
[421553594,1777867832000,-492.41777302,0.00012026,2]
[421553607,1777867832000,-4535.13,0.00012413,2]
[421553610,1777867832000,-154.11,0.0001263,2]
[421553609,1777867832000,-2223.0402,0.00012579,2]
[421553605,1777867832000,-1110.88829216,0.00012378,2]
[421553614,1777867832000,-151.0,0.00012671,2]
[421553606,1777867832000,-2000.0,0.00012413,2]
[421553608,1777867832000,-280.0,0.00012519,2]
[421553595,1777867832000,-637.16163909,0.00012026,2]
[421553596,1777867832000,-1623.82279216,0.00012026,2]
[421553601,1777867832000,-1455.06720784,0.00012255,2]
[421553602,1777867832000,-289.61279216,0.00012255,2]
[421553599,1777867832000,-420.0,0.00012186,2]
[421553590,1777867832000,-300.31506246,0.00012018,2]
[421553598,1777867832000,-200.0,0.00012093,2]
[421553600,1777867832000,-1680.0,0.000122,2]
[421553604,1777867832000,-824.83,0.00012378,2]
[421553612,1777867832000,-151.0,0.00012671,2]
[421553603,1777867832000,-64.28170784,0.00012378,2]
[421553597,1777867832000,-154.11,0.00012056,2]
[421553649,1777867833000,-500.0,0.00013034,2]
[421553650,1777867833000,-500.0,0.00013034,2]
[421553651,1777867833000,-500.0,0.00013034,2]
[421553652,1777867833000,-500.0,0.00013034,2]
[421553656,1777867833000,-351.83545619,0.00013034,2]
[421553659,1777867833000,-500.0,0.00013034,2]
[421553660,1777867833000,-500.0,0.00013034,2]
[421553658,1777867833000,-500.0,0.00013034,2]
[421553657,1777867833000,-500.0,0.00013034,2]
[421553653,1777867833000,-500.0,0.00013034,2]
[421553647,1777867833000,-14032.2222,0.00012935,2]
[421553637,1777867833000,-151.0,0.00012671,2]
[421553639,1777867833000,-151.0,0.00012671,2]
[421553648,1777867833000,-500.0,0.00013034,2]
[421553634,1777867833000,-151.0,0.00012671,2]
[421553645,1777867833000,-651.03615738,0.00012835,2]
[421553643,1777867833000,-53521.23,0.00012679,2]
[421553633,1777867833000,-151.0,0.00012671,2]
[421553630,1777867833000,-151.0,0.00012671,2]
[421553628,1777867833000,-151.0,0.00012671,2]
[421553626,1777867833000,-151.0,0.00012671,2]
[421553655,1777867833000,-500.0,0.00013034,2]
[421553641,1777867833000,-206.03359688,0.00012671,2]
[421553662,1777867833000,-500.0,0.00013034,2]
[421553654,1777867833000,-500.0,0.00013034,2]
[421553664,1777867833000,-500.0,0.00013034,2]
[421553661,1777867833000,-500.0,0.00013034,2]
[421553685,1777867833000,-16246.115469,0.00013135,2]
[421553686,1777867833000,-8857.09341474,0.00013135,2]
[421553684,1777867833000,-382.80585414,0.00013134,2]
[421553683,1777867833000,-500.0,0.00013134,2]
[421553682,1777867833000,-363.45058715,0.00013134,2]
[421553680,1777867833000,-162.22616909,0.00013134,2]
[421553678,1777867833000,-255.0,0.00013098,2]
[421553679,1777867833000,-9209.43188314,0.00013113,2]
[421553681,1777867833000,-500.0,0.00013134,2]
[421553675,1777867833000,-1776.64145801,0.00013035,2]
[421553674,1777867833000,-723.35854199,0.00013035,2]
[421553677,1777867833000,-5647.50972791,0.00013035,2]
[421553672,1777867833000,-500.0,0.00013034,2]
[421553663,1777867833000,-500.0,0.00013034,2]
[421553665,1777867833000,-500.0,0.00013034,2]
[421553670,1777867833000,-500.0,0.00013034,2]
[421553676,1777867833000,-2981.16410321,0.00013035,2]
[421553668,1777867833000,-500.0,0.00013034,2]
[421553687,1777867833000,-1929.27379233,0.00013135,2]
[421553669,1777867833000,-500.0,0.00013034,2]
[421553666,1777867833000,-500.0,0.00013034,2]
[421553671,1777867833000,-500.0,0.00013034,2]
[421553673,1777867833000,-500.0,0.00013035,2]
[421553667,1777867833000,-500.0,0.00013034,2]
[421553694,1777867838000,-654.6,0.00013135,2]
[421553692,1777867838000,-341.50517263,0.00013135,2]
[421553695,1777867838000,-720.31135964,0.00013135,2]
[421553696,1777867838000,-2227.17066313,0.00013135,2]
[421553697,1777867838000,-7618.02974604,0.00013135,2]
[421553693,1777867838000,-812.50323552,0.00013135,2]
[421553701,1777867838000,-26382.92098256,0.00013135,2]
[421553704,1777867838000,-45485.29699447,0.00013135,2]
[421553699,1777867838000,-794.20172421,0.00013135,2]
[421553700,1777867838000,-3216.5170958,0.00013135,2]
[421553703,1777867838000,-8350.78498937,0.00013135,2]
[421553702,1777867838000,-1539.55583912,0.00013135,2]
[421553698,1777867838000,-351.22845105,0.00013135,2]
[421553722,1777867840000,-256.73781653,0.00013135,2]
[421553721,1777867840000,-1687.55928141,0.00013135,2]
[421553725,1777867841000,-349.78086448,0.00013135,2]
[421553723,1777867841000,-70298.25155375,0.00013135,2]
[421553726,1777867841000,-1643.15886456,0.00013135,2]
[421553727,1777867841000,-534.0,0.00013135,2]
[421553724,1777867841000,-1298.45519429,0.00013135,2]
[421553729,1777867841000,-19393.3999986,0.00013135,2]
[421553728,1777867841000,-606.6000014,0.00013135,2]
[421553732,1777867841000,-934.5826608,0.00013135,2]
[421553731,1777867841000,-288.87240688,0.00013135,2]
[421553730,1777867841000,-1198.04289802,0.00013135,2]
[421553758,1777867844000,-500.0,0.00013173,2]
[421553751,1777867844000,-7408.80976309,0.00013135,2]
[421553754,1777867844000,-159.0,0.00013135,2]
[421553753,1777867844000,-2000.0,0.00013135,2]
[421553750,1777867844000,-42.7245821,0.00013135,2]
[421553756,1777867844000,-501.42497213,0.00013173,2]
[421553748,1777867844000,-13732.9411725,0.00013135,2]
[421553746,1777867844000,-575.75031812,0.00013135,2]
[421553747,1777867844000,-1547.99758071,0.00013135,2]
[421553745,1777867844000,-2807.76407546,0.00013135,2]
[421553742,1777867844000,-1042.84105685,0.00013135,2]
[421553744,1777867844000,-5984.95626983,0.00013135,2]
[421553743,1777867844000,-448.35366114,0.00013135,2]
[421553741,1777867844000,-347.02539282,0.00013135,2]
[421553760,1777867844000,-500.0,0.00013173,2]
[421553749,1777867844000,-3076.42365705,0.00013135,2]
[421553761,1777867844000,-500.0,0.00013173,2]
[421553784,1777867844000,-500.0,0.00013698,2]
[421553769,1777867844000,-5000.01,0.00013617,2]
[421553762,1777867844000,-178.34,0.00013174,2]
[421553791,1777867844000,-500.0,0.00013698,2]
[421553789,1777867844000,-500.0,0.00013698,2]
[421553788,1777867844000,-500.4031906,0.00013698,2]
[421553793,1777867844000,-500.0,0.00013698,2]
[421553795,1777867844000,-188.1542149,0.00013698,2]
[421553782,1777867844000,-512.98546215,0.00013698,2]
[421553786,1777867844000,-500.0,0.00013698,2]
[421553778,1777867844000,-168.218271,0.00013673,2]
[421553776,1777867844000,-500.0,0.00013673,2]
[421553773,1777867844000,-594.55392102,0.00013673,2]
[421553767,1777867844000,-150.0,0.00013596,2]
[421553763,1777867844000,-587.0,0.0001339,2]
[421553765,1777867844000,-2351.0,0.00013419,2]
[421553780,1777867844000,-1678.64929863,0.0001369,2]
[421553771,1777867844000,-502.0,0.00013644,2]
[421553831,1777867846000,-500.0,0.00013698,2]
[421553830,1777867846000,-601.12255009,0.00013698,2]
[421553832,1777867846000,-500.0,0.00013698,2]
[421553833,1777867846000,-482.24126196,0.00013698,2]
[421553838,1777867846000,-370.89484148,0.00013698,2]
[421553836,1777867846000,-362.89484148,0.00013698,2]
[421553837,1777867846000,-137.10515852,0.00013698,2]
[421553828,1777867846000,-500.0,0.00013698,2]
[421553835,1777867846000,-500.0,0.00013698,2]
[421553834,1777867846000,-17.75873804,0.00013698,2]
[421553829,1777867846000,-500.0,0.00013698,2]
[421553820,1777867846000,-500.0,0.00013698,2]
[421553824,1777867846000,-500.0,0.00013698,2]
[421553825,1777867846000,-500.0,0.00013698,2]
[421553823,1777867846000,-500.0,0.00013698,2]
[421553822,1777867846000,-500.0,0.00013698,2]
[421553821,1777867846000,-500.0,0.00013698,2]
[421553819,1777867846000,-500.0,0.00013698,2]
[421553818,1777867846000,-18.6361935,0.00013698,2]
[421553817,1777867846000,-481.3638065,0.00013698,2]
[421553816,1777867846000,-311.8457851,0.00013698,2]
[421553843,1777867846000,-500.0,0.00013698,2]
[421553827,1777867846000,-500.0,0.00013698,2]
[421553839,1777867846000,-129.10515852,0.00013698,2]
[421553826,1777867846000,-500.0,0.00013698,2]
[421553842,1777867846000,-500.0,0.00013698,2]
[421553840,1777867846000,-500.0,0.00013698,2]
[421553863,1777867846000,-710.67635117,0.00013699,2]
[421553865,1777867846000,-710.67635117,0.00013699,2]
[421553861,1777867846000,-710.67635117,0.00013699,2]
[421553859,1777867846000,-710.67635117,0.00013699,2]
[421553860,1777867846000,-710.67635117,0.00013699,2]
[421553864,1777867846000,-710.67635117,0.00013699,2]
[421553866,1777867846000,-710.67635117,0.00013699,2]
[421553857,1777867846000,-710.67635117,0.00013699,2]
[421553858,1777867846000,-710.67635117,0.00013699,2]
[421553855,1777867846000,-710.67635117,0.00013699,2]
[421553862,1777867846000,-710.67635117,0.00013699,2]
[421553853,1777867846000,-710.67635117,0.00013699,2]
[421553854,1777867846000,-710.67635117,0.00013699,2]
[421553856,1777867846000,-710.67635117,0.00013699,2]
[421553852,1777867846000,-710.67635117,0.00013699,2]
[421553846,1777867846000,-500.0,0.00013698,2]
[421553847,1777867846000,-500.0,0.00013698,2]
[421553849,1777867846000,-200.0,0.00013699,2]
[421553850,1777867846000,-2500.0,0.00013699,2]
[421553848,1777867846000,-166.66,0.00013699,2]
[421553845,1777867846000,-500.0,0.00013698,2]
[421553844,1777867846000,-501.97588493,0.00013698,2]
[421553841,1777867846000,-500.0,0.00013698,2]
[421553851,1777867846000,-665.32180989,0.00013699,2]
[421553867,1777867847000,-710.67635117,0.00013699,2]
[421553869,1777867847000,-444.85984272,0.00013699,2]
[421553868,1777867847000,-710.67635117,0.00013699,2]
[421553871,1777867847000,-710.67635117,0.00013699,2]
[421553870,1777867847000,-265.81650845,0.00013699,2]
[421553872,1777867847000,-710.67635117,0.00013699,2]
[421553877,1777867847000,-507.14355119,0.00013699,2]
[421553873,1777867847000,-710.67635117,0.00013699,2]
[421553876,1777867847000,-710.67635117,0.00013699,2]
[421553875,1777867847000,-710.67635117,0.00013699,2]
[421553874,1777867847000,-710.67635117,0.00013699,2]
[421553879,1777868096000,280.0,8.219e-05,2]
[421553883,1777868440000,155.21,0.0003013,120]
[421553885,1777868470000,10000.0,0.00030136,120]
[421553887,1777868536000,280.0,8.219e-05,2]
[421553888,1777868730000,10000.0,0.000301,120]
[421553889,1777868739000,10000.0,0.000301,120]
[421553890,1777868739000,10000.0,0.000301,120]
[421553891,1777868740000,10000.0,0.000301,120]
[421553892,1777868948000,-200.0,0.00012089,2]
[421553899,1777868998000,280.0,8.219e-05,2]
[421553910,1777869031000,-126226.15976717,0.00012,2]
[421553917,1777869031000,-2198.71831106,0.00012,2]
[421553915,1777869031000,-303.7221389,0.00012,2]
[421553916,1777869031000,-2182.37961044,0.00012,2]
[421553922,1777869031000,-665.72995843,0.00012,2]
[421553919,1777869031000,-874.59964105,0.00012,2]
[421553921,1777869031000,-642.29822088,0.00012,2]
[421553920,1777869031000,-563.8625775,0.00012,2]
[421553918,1777869031000,-18375.05475236,0.00012,2]
[421553963,1777869037000,-341.37697513,0.00012,2]
[421553961,1777869037000,-8350.78498937,0.00012,2]
[421553981,1777869039000,-408458.83640992,0.00012,2]
[421553986,1777869039000,-162.01423821,0.00012357,2]
[421553983,1777869039000,-172.68,0.00012329,2]
[421553985,1777869039000,-250.0,0.00012343,2]
[421553984,1777869039000,-5000.0,0.00012336,2]
[421553982,1777869039000,-1614.82,0.00012046,2]
[421553990,1777869039000,-162.01423821,0.00012484,2]
[421553991,1777869039000,-300.0,0.00012506,2]
[421553987,1777869039000,-5000.0,0.00012399,2]
[421553989,1777869039000,-1200.0,0.00012483,2]
[421553992,1777869039000,-500.0,0.00012507,2]
[421553994,1777869039000,-500.0,0.00012507,2]
[421553996,1777869039000,-500.0,0.00012507,2]
[421553993,1777869039000,-500.0,0.00012507,2]
[421553997,1777869039000,-500.0,0.00012507,2]
[421553998,1777869039000,-500.0,0.00012507,2]
[421553995,1777869039000,-500.0,0.00012507,2]
[421553988,1777869039000,-3335.41532182,0.00012399,2]
[421554041,1777869040000,-500.0,0.00013298,2]
[421554042,1777869040000,-160869.3854751,0.00013407,2]
[421554032,1777869040000,-435.04,0.00012741,2]
[421554061,1777869040000,-500.0,0.00013698,2]
[421554033,1777869040000,-3053.01326619,0.00012768,2]
[421554030,1777869040000,-158.91,0.00012584,2]
[421554037,1777869040000,-30857.58619438,0.00013169,2]
[421554034,1777869040000,-154.99,0.00012781,2]
[421554036,1777869040000,-347.48,0.00013169,2]
[421554052,1777869040000,-500.0,0.00013673,2]
[421554031,1777869040000,-280.0,0.00012691,2]
[421554038,1777869040000,-166.67,0.00013194,2]
[421554050,1777869040000,-255.0,0.00013664,2]
[421554044,1777869040000,-170.37,0.00013466,2]
[421554048,1777869040000,-5000.0,0.00013562,2]
[421554047,1777869040000,-200.8997292,0.00013562,2]
[421554028,1777869040000,-500.87192563,0.00012578,2]
[421554046,1777869040000,-250.0,0.00013562,2]
[421554043,1777869040000,-1428.79795853,0.00013462,2]
[421554049,1777869040000,-5082.75875511,0.00013598,2]
[421554051,1777869040000,-245.87494951,0.00013673,2]
[421554053,1777869040000,-319.14849905,0.00013673,2]
[421554064,1777869040000,-500.0,0.00013698,2]
[421554054,1777869040000,-500.0,0.00013673,2]
[421554060,1777869040000,-500.94430657,0.00013698,2]
[421554066,1777869040000,-500.0,0.00013698,2]
[421554057,1777869040000,-7998.1374445,0.00013698,2]
[421554058,1777869040000,-48458.1402839,0.00013698,2]
[421554045,1777869040000,-2000.0,0.00013526,2]
[421554039,1777869040000,-158.91,0.00013213,2]
[421554022,1777869040000,-435.18354562,0.00012578,2]
[421554029,1777869040000,-284239.5009,0.00012579,2]
[421553999,1777869040000,-500.0,0.00012507,2]
[421554001,1777869040000,-150.0,0.0001257,2]
[421554011,1777869040000,-500.0,0.00012571,2]
[421554000,1777869040000,-413.07705754,0.00012507,2]
[421554013,1777869040000,-356.49902166,0.00012571,2]
[421554012,1777869040000,-151.0,0.00012571,2]
[421554002,1777869040000,-500.0,0.00012571,2]
[421554004,1777869040000,-151.0,0.00012571,2]
[421554003,1777869040000,-500.0,0.00012571,2]
[421554007,1777869040000,-500.0,0.00012571,2]
[421554006,1777869040000,-151.0,0.00012571,2]
[421554005,1777869040000,-500.0,0.00012571,2]
[421554008,1777869040000,-151.0,0.00012571,2]
[421554040,1777869040000,-250.0,0.00013298,2]
[421554010,1777869040000,-151.0,0.00012571,2]
[421554014,1777869040000,-151.0,0.00012571,2]
[421554017,1777869040000,-151.0,0.00012571,2]
[421554016,1777869040000,-151.0,0.00012571,2]
[421554025,1777869040000,-500.0,0.00012578,2]
[421554021,1777869040000,-500.0,0.00012578,2]
[421554027,1777869040000,-500.0,0.00012578,2]
[421554020,1777869040000,-500.0,0.00012578,2]
[421554026,1777869040000,-500.0,0.00012578,2]
[421554015,1777869040000,-151.0,0.00012571,2]
[421554018,1777869040000,-301.30302409,0.00012571,2]
[421554023,1777869040000,-500.0,0.00012578,2]
[421554019,1777869040000,-537.99183586,0.00012571,2]
[421554024,1777869040000,-500.0,0.00012578,2]
[421554009,1777869040000,-500.0,0.00012571,2]
[421554059,1777869040000,-500.0,0.00013698,2]
[421554035,1777869040000,-150.0,0.000128,2]
[421554056,1777869040000,-604.415411,0.00013697,2]
[421554100,1777869040000,-166.66,0.00014384,2]
[421554104,1777869040000,-257.90468,0.0001485,2]
[421554097,1777869040000,-174.61919141,0.00014275,2]
[421554098,1777869040000,-435.04,0.00014333,2]
[421554099,1777869040000,-232.55,0.00014368,2]
[421554101,1777869040000,-205.77,0.00014539,2]
[421554102,1777869040000,-181.08010149,0.00014823,2]
[421554103,1777869040000,-257.90468,0.0001485,2]
[421554105,1777869040000,-257.90468,0.0001485,2]
[421554108,1777869040000,-257.90468,0.0001485,2]
[421554119,1777869040000,-500.0,0.00014999,2]
[421554118,1777869040000,-500.0,0.00014999,2]
[421554107,1777869040000,-257.90468,0.0001485,2]
[421554113,1777869040000,-782.72738772,0.0001494,2]
[421554117,1777869040000,-500.0,0.00014999,2]
[421554112,1777869040000,-163.46002488,0.000149,2]
[421554109,1777869040000,-200.0,0.00014879,2]
[421554111,1777869040000,-500.0,0.000149,5]
[421554110,1777869040000,-200.0,0.0001488,2]
[421554114,1777869040000,-155.0,0.00014999,2]
[421554120,1777869040000,-500.0,0.00014999,2]
[421554115,1777869040000,-214.02647502,0.00014999,2]
[421554116,1777869040000,-500.0,0.00014999,2]
[421554122,1777869040000,-257.0,0.00015,5]
[421554123,1777869040000,-150.0,0.00015,2]
[421554124,1777869040000,-270038.43918242,0.00015,2]
[421554126,1777869040000,-81664.85622187,0.00015,2]
[421554125,1777869040000,-5986.6068464,0.00015,2]
[421554055,1777869040000,-617.9640979,0.00013697,2]
[421554106,1777869040000,-257.90468,0.0001485,2]
[421554096,1777869040000,-773.80319205,0.00014275,2]
[421554121,1777869040000,-500.0,0.00014999,2]
[421554090,1777869040000,-506.86,0.00014219,2]
[421554065,1777869040000,-500.0,0.00013698,2]
[421554095,1777869040000,-578.20924308,0.00014275,2]
[421554062,1777869040000,-500.0,0.00013698,2]
[421554067,1777869040000,-34043.4197547,0.00013698,2]
[421554068,1777869040000,-500.0,0.00013698,2]
[421554076,1777869040000,-200.0,0.00013699,2]
[421554077,1777869040000,-162.97,0.000137,2]
[421554075,1777869040000,-2500.0,0.00013699,2]